bitfinex-derivatives/quotes_BTCF0:USTF0_20250501
["timestamp","ask_amount","ask_price","bid_price","bid_amount"]
[1746086861330,0.94420396,94958.0,94957.0,0.37316112]
[1746086861532,0.94420396,94958.0,94957.0,0.58375112]
[1746086868340,0.73357616,94958.0,94957.0,0.68906312]
[1746086868538,0.73361616,94958.0,94957.0,0.68906312]
[1746086868936,0.73357616,94958.0,94957.0,0.68906312]
[1746086869139,0.73361616,94958.0,94957.0,0.68906312]
[1746086869936,0.2105614,94970.0,94969.0,0.2105612]
[1746086870130,0.2105614,94970.0,94969.0,0.5925612]
[1746086870329,0.00786741,94970.0,94969.0,0.6854612]
[1746086870527,0.2105612,94970.0,94969.0,0.6854612]
[1746086871131,0.2156012,94970.0,94969.0,0.6854612]
[1746086872037,0.2156012,94970.0,94969.0,0.71064267]
[1746086872430,0.2186012,94970.0,94969.0,0.71064267]
[1746086873743,0.22645597,94970.0,94969.0,0.71064267]
[1746086875248,0.25735597,94970.0,94969.0,0.71064267]
[1746086879742,0.25735597,94970.0,94969.0,0.64844267]
[1746086879939,0.28845597,94970.0,94969.0,0.64844267]
[1746086884133,0.28845597,94970.0,94969.0,0.52644267]
[1746086886132,0.28845597,94970.0,94969.0,0.64844267]
[1746086886341,0.28845597,94970.0,94969.0,0.61774267]
[1746086886736,0.28845597,94970.0,94969.0,0.64794267]
[1746086887145,0.28845597,94970.0,94969.0,0.52594267]
[1746086891247,0.28845597,94970.0,94969.0,0.64794267]
[1746086892344,0.28845597,94970.0,94969.0,0.52594267]
[1746086894445,0.28845597,94970.0,94969.0,0.49574267]
[1746086896450,0.28845597,94970.0,94969.0,0.52824267]
[1746086901645,0.28841597,94970.0,94969.0,0.52824267]
[1746086909745,0.28841597,94970.0,94969.0,0.52824487]
[1746086915759,0.28841597,94970.0,94969.0,0.31768147]
[1746086915954,0.28841597,94970.0,94969.0,0.52824487]
[1746086917146,0.28841597,94970.0,94969.0,0.31768147]
[1746086917552,1.44505012,94970.0,94969.0,0.28518147]
[1746086920757,1.44505012,94970.0,94969.0,0.49574487]
[1746086921055,1.44505012,94970.0,94969.0,0.31658147]
[1746086921255,1.44505012,94970.0,94969.0,0.28518147]
[1746086922149,1.56705012,94970.0,94969.0,0.28518147]
[1746086922351,0.2105789,94962.0,94961.0,0.21341515]
[1746086922551,1.36721305,94962.0,94961.0,0.23341515]
[1746086922848,1.46271305,94962.0,94961.0,0.44399625]
[1746086923045,1.46271305,94962.0,94961.0,0.23341515]
[1746086923252,1.58471305,94962.0,94961.0,0.44399625]
[1746086923453,1.58671305,94962.0,94961.0,0.44399625]
[1746086924062,1.58471305,94962.0,94961.0,0.23341515]
[1746086924266,1.58871305,94962.0,94961.0,0.23441515]
[1746086924860,1.58971305,94962.0,94961.0,0.23441515]
[1746086925458,1.58971305,94962.0,94961.0,0.44499625]
[1746086926969,1.58971305,94962.0,94961.0,0.2315811]
[1746086928863,1.58971305,94962.0,94961.0,0.021]
[1746086930170,1.58971305,94962.0,94961.0,0.2315811]
[1746086930560,1.55651305,94962.0,94961.0,0.2315811]
[1746086930765,1.55651305,94962.0,94961.0,0.6473811]
[1746086930965,1.55655305,94962.0,94961.0,0.6473811]
[1746086931166,1.43455305,94962.0,94961.0,0.6777811]
[1746086941669,1.43455305,94962.0,94961.0,0.7078811]
[1746086942373,1.43451305,94962.0,94961.0,0.7078811]
[1746086943081,1.43455305,94962.0,94961.0,0.7078811]
[1746086947878,1.43455305,94962.0,94961.0,0.6777811]
[1746086955076,1.43655305,94962.0,94961.0,0.6777811]
[1746086955884,1.43355305,94962.0,94961.0,0.6767811]
[1746086956080,1.43755305,94962.0,94961.0,0.6767811]
[1746086957786,0.2809189,94962.0,94961.0,0.6767811]
[1746086961084,0.03924,94962.0,94961.0,0.6767811]
[1746086961276,0.2498189,94962.0,94961.0,0.6767811]
[1746086961479,0.0392,94962.0,94961.0,0.6767811]
[1746086961679,0.03924,94962.0,94961.0,0.6767811]
[1746086962190,0.2498189,94962.0,94961.0,0.6767811]
[1746086962986,0.00785477,94970.0,94969.0,0.2105634]
[1746086963181,0.2105612,94970.0,94969.0,0.6025634]
[1746086963490,0.29085082,94971.0,94970.0,0.2105612]
[1746086963679,0.29085082,94971.0,94970.0,0.5010612]
[1746086964387,0.32325082,94971.0,94970.0,0.5010612]
[1746086965389,0.36452647,94971.0,94970.0,0.5010612]
[1746086965775,0.37452647,94971.0,94970.0,0.5030612]
[1746086965974,0.37452647,94971.0,94970.0,0.9188612]
[1746086966385,0.28923465,94971.0,94970.0,0.9178612]
[1746086966580,0.28923465,94971.0,94970.0,0.9198612]
[1746086967290,0.28423465,94971.0,94970.0,0.9198612]
[1746086967992,0.28423465,94971.0,94970.0,0.9178612]
[1746086968285,0.28523465,94971.0,94970.0,0.9188612]
[1746086968686,0.28623465,94971.0,94970.0,0.9188612]
[1746086970885,0.28623465,94971.0,94970.0,0.8883612]
[1746086972786,1.4428688,94971.0,94970.0,0.6778]
[1746086973087,1.5648688,94971.0,94970.0,0.6778]
[1746086973488,1.5648688,94971.0,94970.0,0.8883612]
[1746086975283,1.4428688,94971.0,94970.0,0.8883612]
[1746086976179,1.5648688,94971.0,94970.0,0.8883612]
[1746086985086,1.4428688,94971.0,94970.0,0.8883612]
[1746086986205,1.5648688,94971.0,94970.0,0.8883612]
[1746086986391,1.5648688,94971.0,94970.0,0.6778]
[1746086986687,1.5648688,94971.0,94970.0,0.8883612]
[1746087006013,1.5648688,94971.0,94970.0,0.9184612]
[1746087006214,1.4428688,94971.0,94970.0,0.9184612]
[1746087007415,0.04251565,94971.0,94970.0,0.9496612]
[1746087007816,0.25303465,94971.0,94970.0,0.9496612]
[1746087008112,0.25307465,94971.0,94970.0,0.9496612]
[1746087009325,0.25307465,94971.0,94970.0,1.0716612]
[1746087009828,0.01011565,94971.0,94970.0,1.0716612]
[1746087010723,0.22067465,94971.0,94970.0,1.0716612]
[1746087015031,0.01011565,94971.0,94970.0,1.0716612]
[1746087015227,0.08029182,94982.0,94975.0,0.0526372]
[1746087015428,0.08029182,94982.0,94981.0,0.2105368]
[1746087015623,0.08831592,94982.0,94981.0,0.5005368]
[1746087015930,0.08831592,94982.0,94981.0,0.5619368]
[1746087016228,0.08831592,94982.0,94981.0,0.6839368]
[1746087016617,0.08835592,94982.0,94981.0,0.6839368]
[1746087017323,0.09135592,94982.0,94981.0,0.6849368]
[1746087017927,0.09131592,94982.0,94981.0,0.6849368]
[1746087018129,0.09435592,94982.0,94981.0,0.6859368]
[1746087018622,0.0120641,94982.0,94981.0,0.6869368]
[1746087018823,0.0100641,94982.0,94981.0,1.1037368]
[1746087019030,1e-08,94982.0,94981.0,2.7090208]
[1746087019624,0.03477992,94990.0,94989.0,0.2105191]
[1746087019819,0.03477992,94990.0,94989.0,1.0271191]
[1746087020328,0.03477992,94990.0,94989.0,1.1491191]
[1746087020532,0.03477992,94990.0,94989.0,1.2106191]
[1746087020721,0.24529672,94990.0,94989.0,1.2106191]
[1746087021717,0.24529672,94990.0,94989.0,1.2116191]
[1746087022532,0.25323207,94990.0,94989.0,1.2116191]
[1746087022725,0.04271527,94990.0,94989.0,1.2116191]
[1746087023220,0.25323207,94990.0,94989.0,1.2116191]
[1746087023626,0.25327207,94990.0,94989.0,1.2116191]
[1746087024027,0.04275527,94990.0,94989.0,1.2116191]
[1746087024432,0.25327207,94990.0,94989.0,1.2116191]
[1746087025129,0.04275527,94990.0,94989.0,1.2116191]
[1746087025327,0.25327207,94990.0,94989.0,1.2116191]
[1746087032333,0.25327207,94990.0,94989.0,1.1804191]
[1746087033247,0.25327207,94990.0,94989.0,1.0584191]
[1746087034432,0.25327207,94990.0,94989.0,2.5584191]
[1746087040238,0.28637207,94990.0,94989.0,2.5584191]
[1746087051349,0.28637207,94990.0,94989.0,2.71913732]
[1746087054154,0.28633207,94990.0,94989.0,2.71913732]
[1746087055747,0.28633207,94990.0,94989.0,2.5584191]
[1746087059561,0.28633207,94990.0,94989.0,2.71913732]
[1746087063659,0.28633207,94990.0,94989.0,1.21913732]
[1746087064574,0.28633207,94990.0,94989.0,1.0584191]
[1746087067565,1.44296622,94990.0,94989.0,1.0281191]
[1746087068454,1.23244942,94990.0,94989.0,1.0281191]
[1746087068655,1.44296622,94990.0,94989.0,1.0281191]
[1746087068853,1.23244942,94990.0,94989.0,1.0603191]
[1746087069052,0.07581527,94990.0,94989.0,1.25183732]
[1746087069367,0.07585527,94990.0,94989.0,1.37383732]
[1746087070360,0.28637207,94990.0,94989.0,1.37383732]
[1746087070557,0.07585527,94990.0,94989.0,1.37383732]
[1746087071158,0.28637207,94990.0,94989.0,1.25183732]
[1746087071369,0.07585527,94990.0,94989.0,1.25183732]
[1746087071865,0.28637207,94990.0,94989.0,1.25183732]
[1746087072250,0.28637207,94990.0,94989.0,1.37383732]
[1746087072661,0.28637207,94990.0,94989.0,1.2131191]
[1746087073459,0.07585527,94990.0,94989.0,1.2131191]
[1746087074458,0.07581527,94990.0,94989.0,1.2131191]
[1746087074865,0.07427535,94990.0,94989.0,1.2131191]
[1746087075364,0.07423535,94990.0,94989.0,1.2131191]
[1746087075552,0.07427535,94990.0,94989.0,1.2131191]
[1746087076568,0.28479215,94990.0,94989.0,1.2131191]
[1746087076774,0.07427535,94990.0,94989.0,1.2131191]
[1746087078670,0.28479215,94990.0,94989.0,1.2131191]
[1746087079675,0.28479215,94990.0,94989.0,2.7131191]
[1746087080863,0.28479215,94990.0,94989.0,2.6823191]
[1746087082159,0.28479215,94990.0,94989.0,2.5603191]
[1746087083754,0.28479215,94990.0,94989.0,2.5281191]
[1746087084455,0.28479215,94990.0,94989.0,2.68915662]
[1746087085161,0.28479215,94990.0,94989.0,2.81115662]
[1746087086356,0.28479215,94990.0,94989.0,2.84415662]
[1746087087265,0.28479215,94990.0,94989.0,2.72215662]
[1746087089673,0.28479215,94990.0,94989.0,2.68915662]
[1746087091870,0.28479215,94990.0,94989.0,2.72045662]
[1746087092578,1.4414263,94990.0,94989.0,1.18915662]
[1746087098167,1.4414263,94990.0,94989.0,1.31115662]
[1746087098481,1.4414263,94990.0,94989.0,1.34115662]
[1746087098980,1.4414263,94990.0,94989.0,1.31115662]
[1746087099279,1.4414263,94990.0,94989.0,1.18915662]
[1746087103585,1.4723263,94990.0,94989.0,1.18915662]
[1746087106698,1.4722863,94990.0,94989.0,1.18915662]
[1746087108601,1.4722863,94990.0,94989.0,2.68915662]
[1746087109299,1.4722863,94990.0,94989.0,2.72015662]
[1746087110102,1.5942863,94990.0,94989.0,2.72015662]
[1746087110601,1.5942863,94990.0,94989.0,2.5591191]
[1746087111100,1.4722863,94990.0,94989.0,2.5591191]
[1746087117189,1.4722863,94990.0,94989.0,2.72020421]
[1746087120912,1.4722863,94990.0,94989.0,2.5591191]
[1746087130303,1.4722863,94990.0,94989.0,2.720215]
[1746087135312,1.4722863,94990.0,94989.0,2.5591191]
[1746087136004,1.4722863,94990.0,94989.0,2.1983191]
[1746087136303,1.4722863,94990.0,94989.0,2.5591191]
[1746087136904,0.2104947,95000.0,94999.0,0.2104947]
[1746087137208,0.2104559,95018.0,94999.0,0.6434237]
[1746087137505,0.00155401,95010.0,95009.0,0.5712747]
[1746087137711,0.05382291,95019.0,95018.0,0.2104548]
[1746087137897,0.0301,95036.0,95035.0,0.2104172]
[1746087138098,0.0301,95036.0,95035.0,0.9382172]
[1746087138304,1.18673415,95036.0,95035.0,0.9382172]
[1746087138505,1.18677415,95036.0,95035.0,0.9382172]
[1746087138906,1.18677415,95036.0,95035.0,1.0016172]
[1746087139310,1.17167415,95036.0,95035.0,1.0036172]
[1746087139502,0.0015,95045.0,95035.0,0.7932]
[1746087139810,0.0015,95045.0,95044.0,0.2103972]
[1746087140012,0.0015,95045.0,95044.0,0.4903972]
[1746087140311,1.15817415,95045.0,95044.0,0.4903972]
[1746087141211,1.15817415,95045.0,95044.0,0.5219972]
[1746087141212,1.19447415,95045.0,95044.0,0.5219972]
[1746087142305,1.23357415,95045.0,95044.0,0.5219972]
[1746087142906,1.22757415,95045.0,95044.0,0.5219972]
[1746087143209,1.23257415,95045.0,95044.0,0.5229972]
[1746087143409,1.24034162,95045.0,95044.0,0.5229972]
[1746087144707,1.45073662,95045.0,95044.0,0.5229972]
[1746087144902,1.45073662,95045.0,95044.0,0.9387972]
[1746087149111,1.57273662,95045.0,95044.0,0.9387972]
[1746087152211,1.32924162,95045.0,95044.0,0.9387972]
[1746087152406,0.0312,95053.0,95052.0,0.2103795]
[1746087152718,0.21042911,95054.0,95053.0,0.2103773]
[1746087152905,0.2103751,95054.0,95053.0,0.5557773]
[1746087153109,1.36704925,95054.0,95053.0,0.5557773]
[1746087154220,1.48904925,95054.0,95053.0,0.5557773]
[1746087154520,1.49404925,95054.0,95053.0,0.5567773]
[1746087155606,1.28367415,95054.0,95053.0,0.9725773]
[1746087155811,1.50004925,95054.0,95053.0,0.9725773]
[1746087157107,1.50793093,95054.0,95053.0,0.9725773]
[1746087159617,0.14092168,95054.0,95053.0,0.9725773]
[1746087160206,0.01892168,95054.0,95053.0,0.98294783]
[1746087160407,0.01888168,95054.0,95053.0,0.98294783]
[1746087160611,0.01292168,95054.0,95053.0,0.98294783]
[1746087160912,0.00988168,95054.0,95053.0,0.9715773]
[1746087161111,0.01292168,95054.0,95053.0,2.4715773]
[1746087162116,0.13492168,95054.0,95053.0,2.4715773]
[1746087163216,0.01292168,95054.0,95053.0,2.4715773]
[1746087165011,0.01292168,95054.0,95053.0,3.1931773]
[1746087169110,0.13492168,95054.0,95053.0,3.1931773]
[1746087171316,0.01292168,95054.0,95053.0,3.1931773]
[1746087172212,0.13492168,95054.0,95053.0,3.1931773]
[1746087173211,0.01292168,95054.0,95053.0,3.1931773]
[1746087174224,0.13492168,95054.0,95053.0,1.6931773]
[1746087175310,0.01292168,95054.0,95053.0,1.6931773]
[1746087176022,0.22329678,95054.0,95053.0,1.6931773]
[1746087176223,0.34529678,95054.0,95053.0,1.6931773]
[1746087176923,0.13492168,95054.0,95053.0,1.6931773]
[1746087177118,0.34529678,95054.0,95053.0,1.6931773]
[1746087180920,0.13492168,95054.0,95053.0,1.6931773]
[1746087181820,0.13488168,95054.0,95053.0,1.6931773]
[1746087182122,0.01292168,95054.0,95053.0,1.6931773]
[1746087183114,0.04352168,95054.0,95053.0,1.6931773]
[1746087184023,0.25389678,95054.0,95053.0,1.6931773]
[1746087184218,0.16552168,95054.0,95053.0,1.6931773]
[1746087184408,0.37589678,95054.0,95053.0,1.6931773]
[1746087186316,0.16552168,95054.0,95053.0,1.6931773]
[1746087186608,0.37589678,95054.0,95053.0,1.6931773]
[1746087188223,0.13492168,95054.0,95053.0,1.6931773]
[1746087188423,0.13492168,95054.0,95053.0,1.70873053]
[1746087189109,0.01292168,95054.0,95053.0,1.70873053]
[1746087190821,0.00503067,95054.0,95053.0,1.70873053]
[1746087192526,0.00503067,95054.0,95053.0,1.6931773]
[1746087193229,0.00503067,95054.0,95053.0,3.1931773]
[1746087193523,0.01302244,95054.0,95053.0,3.1931773]
[1746087193723,0.00503067,95054.0,95053.0,3.1931773]
[1746087195123,0.12703067,95054.0,95053.0,3.1931773]
[1746087195319,0.15723067,95054.0,95053.0,3.1931773]
[1746087195715,0.36760577,95054.0,95053.0,3.1931773]
[1746087195915,0.15723067,95054.0,95053.0,3.1931773]
[1746087196321,0.06693067,95054.0,95053.0,3.1931773]
[1746087196518,0.06693067,95054.0,95053.0,3.20884324]
[1746087197224,0.18893067,95054.0,95053.0,3.20884324]
[1746087197723,0.19698556,95054.0,95053.0,3.20884324]
[1746087198121,0.07498556,95054.0,95053.0,2.84804324]
[1746087200227,0.19698556,95054.0,95053.0,2.84804324]
[1746087203635,0.19698556,95054.0,95053.0,2.84794379]
[1746087207934,0.16528556,95054.0,95053.0,2.84794379]
[1746087208133,0.04328556,95054.0,95053.0,2.84794379]
[1746087208526,0.04328556,95054.0,95053.0,2.8323773]
[1746087209123,0.16528556,95054.0,95053.0,2.8323773]
[1746087209520,0.16528556,95054.0,95053.0,2.84791588]
[1746087210228,0.04328556,95054.0,95053.0,2.84791588]
[1746087211731,0.04324556,95054.0,95053.0,2.84791588]
[1746087212531,0.04324556,95054.0,95053.0,3.1931773]
[1746087213222,0.16524556,95054.0,95053.0,3.1931773]
[1746087213632,0.16524556,95054.0,95053.0,3.20871566]
[1746087214134,0.04324556,95054.0,95053.0,3.20871566]
[1746087214534,0.04324556,95054.0,95053.0,3.1931773]
[1746087216139,0.16524556,95054.0,95053.0,3.1931773]
[1746087218533,0.16524556,95054.0,95053.0,8.1931773]
[1746087219639,0.16524556,95054.0,95053.0,8.40761706]
[1746087225227,0.04324556,95054.0,95053.0,8.40761706]
[1746087226234,0.16524556,95054.0,95053.0,8.40761706]
[1746087227141,0.16524556,95054.0,95053.0,8.1931773]
[1746087231446,1.32187971,95054.0,95053.0,8.1931773]
[1746087233145,1.19987971,95054.0,95053.0,8.1931773]
[1746087234137,1.32187971,95054.0,95053.0,8.1931773]
[1746087234946,1.32187971,95054.0,95053.0,8.03968229]
[1746087235543,1.35187971,95054.0,95053.0,8.03968229]
[1746087242844,1.38497971,95054.0,95053.0,8.03968229]
[1746087243247,1.38497971,95054.0,95053.0,6.53968229]
[1746087244145,1.38497971,95054.0,95053.0,6.57108229]
[1746087245852,1.38497971,95054.0,95053.0,5.84948229]
[1746087246047,1.38497971,95054.0,95053.0,6.57108229]
[1746087246254,1.26297971,95054.0,95053.0,5.84948229]
[1746087246446,1.26297971,95054.0,95053.0,6.57108229]
[1746087247254,1.38497971,95054.0,95053.0,6.57108229]
[1746087247852,1.38497971,95054.0,95053.0,6.60148229]
[1746087250856,1.38497971,95054.0,95053.0,5.87988229]
[1746087251052,1.38497971,95054.0,95053.0,6.60148229]
[1746087251259,1.38497971,95054.0,95053.0,6.81605719]
[1746087253155,1.26297971,95054.0,95053.0,6.81605719]
[1746087254257,1.38497971,95054.0,95053.0,6.81605719]
[1746087255052,1.38497971,95054.0,95053.0,6.09445719]
[1746087255246,1.38497971,95054.0,95053.0,6.81605719]
[1746087256250,1.38497971,95054.0,95053.0,6.60148229]
[1746087257460,1.59535481,95054.0,95053.0,6.53968229]
[1746087257961,1.70055881,95054.0,95053.0,0.81808229]
[1746087258962,1.59535481,95054.0,95053.0,0.81808229]
[1746087259467,1.59539481,95054.0,95053.0,0.81808229]
[1746087261065,1.38501971,95054.0,95053.0,0.81808229]
[1746087261266,1.38501971,95054.0,95053.0,0.85128229]
[1746087261566,1.59535481,95054.0,95053.0,0.85128229]
[1746087261768,1.59539481,95054.0,95053.0,0.85128229]
[1746087263070,1.38501971,95054.0,95053.0,0.85128229]
[1746087263461,1.59539481,95054.0,95053.0,0.85128229]
[1746087267879,1.59539481,95054.0,95053.0,1.01203282]
[1746087270774,1.59539481,95054.0,95053.0,0.97883282]
[1746087271885,1.59539481,95054.0,95053.0,0.81808229]
[1746087272490,1.59539481,95054.0,95053.0,0.85108229]
[1746087285487,1.59539481,95054.0,95053.0,0.88338229]
[1746087288190,1.59539481,95054.0,95053.0,1.04413282]
[1746087291606,1.59535481,95054.0,95053.0,1.04413282]
[1746087292304,1.59535481,95054.0,95053.0,0.88338229]
[1746087294000,1.59535481,95054.0,95053.0,0.85108229]
[1746087296898,1.59535481,95054.0,95053.0,0.81808229]
[1746087297101,1.59535481,95054.0,95053.0,0.60770499]
[1746087297602,1.59535481,95054.0,95053.0,0.81808229]
[1746087299306,1.60570653,95054.0,95053.0,0.81808229]
[1746087302015,1.59535481,95054.0,95053.0,0.81808229]
[1746087304504,1.59535481,95054.0,95053.0,0.85098229]
[1746087306912,0.06384,95070.0,95064.0,0.2103508]
[1746087307105,0.3262542,95065.0,95064.0,0.2103508]
[1746087307411,1.48288835,95065.0,95064.0,0.2103508]
[1746087308097,1.60488835,95065.0,95064.0,0.2103508]
[1746087308301,1.63548835,95065.0,95064.0,0.2430508]
[1746087308710,1.68807875,95065.0,95064.0,0.2430508]
[1746087308901,1.69307875,95065.0,95064.0,0.2430508]
[1746087309508,1.70609476,95065.0,95064.0,0.2430508]
[1746087310312,1.70609476,95065.0,95064.0,0.2103508]
[1746087310512,1.70609476,95065.0,95064.0,0.2435508]
[1746087311408,1.65350436,95065.0,95064.0,0.2435508]
[1746087312109,1.53150436,95065.0,95064.0,0.2435508]
[1746087313108,1.65350436,95065.0,95064.0,0.2435508]
[1746087314108,1.65354436,95065.0,95064.0,0.2435508]
[1746087319405,1.65350436,95065.0,95064.0,0.2758508]
[1746087319607,1.65354436,95065.0,95064.0,0.2758508]
[1746087320209,1.53154436,95065.0,95064.0,0.2758508]
[1746087327517,1.50064436,95065.0,95064.0,0.2758508]
[1746087328420,1.50060436,95065.0,95064.0,0.2758508]
[1746087328608,1.50064436,95065.0,95064.0,0.2758508]
[1746087334222,1.20529016,95065.0,95064.0,0.4358508]
[1746087334422,1.20525016,95065.0,95064.0,0.4664508]
[1746087334626,1.20529016,95065.0,95064.0,0.4664508]
[1746087335110,1.41564096,95065.0,95064.0,0.4664508]
[1746087337220,1.20529016,95065.0,95064.0,0.4664508]
[1746087337522,1.41560096,95065.0,95064.0,0.4664508]
[1746087337724,1.41564096,95065.0,95064.0,0.4664508]
[1746087338024,1.41564096,95065.0,95064.0,0.3664508]
[1746087339228,1.41564096,95065.0,95064.0,0.7272508]
[1746087341129,1.41564096,95065.0,95064.0,0.8492508]
[1746087342133,1.41564096,95065.0,95064.0,0.7272508]
[1746087342429,1.20529016,95065.0,95064.0,0.7272508]
[1746087342833,1.41560096,95065.0,95064.0,0.7272508]
[1746087343031,1.41564096,95065.0,95064.0,0.7272508]
[1746087344131,1.41564096,95065.0,95064.0,0.8492508]
[1746087344431,1.20529016,95065.0,95064.0,0.8492508]
[1746087344621,1.41564096,95065.0,95064.0,0.8492508]
[1746087345231,1.41564096,95065.0,95064.0,0.7272508]
[1746087345432,1.20529016,95065.0,95064.0,0.7272508]
[1746087346636,1.41564096,95065.0,95064.0,0.7272508]
[1746087347337,1.41564096,95065.0,95064.0,1.1430508]
[1746087348129,0.04865601,95065.0,95064.0,1.1430508]
[1746087348631,0.25900681,95065.0,95064.0,1.1430508]
[1746087349033,0.01805601,95065.0,95064.0,1.1430508]
[1746087349432,0.01801601,95065.0,95064.0,1.1430508]
[1746087349628,0.01805601,95065.0,95064.0,1.1430508]
[1746087350627,0.22640681,95065.0,95064.0,1.1430508]
[1746087350818,0.25460681,95065.0,95064.0,0.7822508]
[1746087351028,0.25660681,95065.0,95064.0,1.1430508]
[1746087352135,0.04625601,95065.0,95064.0,1.1430508]
[1746087353018,0.04625601,95065.0,95064.0,1.15871748]
[1746087353222,0.25660681,95065.0,95064.0,1.15871748]
[1746087354135,0.25660681,95065.0,95064.0,1.1430508]
[1746087355136,0.25660681,95065.0,95064.0,1.2650508]
[1746087356136,0.25660681,95065.0,95064.0,1.1430508]
[1746087356438,0.24871617,95065.0,95064.0,1.1430508]
[1746087357137,0.37071617,95065.0,95064.0,1.1430508]
[1746087357638,0.37071617,95065.0,95064.0,1.1124508]
[1746087359231,0.24871617,95065.0,95064.0,1.1124508]
[1746087360240,0.37071617,95065.0,95064.0,1.1124508]
[1746087362143,0.24871617,95065.0,95064.0,1.1124508]
[1746087363142,0.37071617,95065.0,95064.0,1.1124508]
[1746087364041,0.37071617,95065.0,95064.0,0.7516508]
[1746087364235,0.37071617,95065.0,95064.0,1.1124508]
[1746087365142,0.24871617,95065.0,95064.0,1.1124508]
[1746087366046,0.24871617,95065.0,95064.0,0.7516508]
[1746087366240,0.37071617,95065.0,95064.0,1.1124508]
[1746087368246,0.24871617,95065.0,95064.0,1.1124508]
[1746087370153,0.37071617,95065.0,95064.0,1.1124508]
[1746087371353,0.24871617,95065.0,95064.0,1.1124508]
[1746087371852,0.24871617,95065.0,95064.0,1.27333448]
[1746087372155,0.37071617,95065.0,95064.0,1.27333448]
[1746087379159,0.37067617,95065.0,95064.0,1.27333448]
[1746087379361,0.37067617,95065.0,95064.0,1.1124508]
[1746087381360,0.12712537,95065.0,95064.0,1.1124508]
[1746087381568,0.001,95076.0,95075.0,0.2103286]
[1746087381758,0.2113264,95076.0,95075.0,0.8111286]
[1746087381959,0.2113664,95076.0,95075.0,2.3111286]
[1746087382159,0.3333664,95076.0,95075.0,2.3111286]
[1746087382363,0.3333664,95076.0,95075.0,2.3442286]
[1746087382756,0.3967664,95076.0,95075.0,2.3442286]
[1746087383058,0.3987664,95076.0,95075.0,2.3442286]
[1746087383967,0.3987664,95076.0,95075.0,2.3542286]
[1746087384268,0.3977664,95076.0,95075.0,2.3542286]
[1746087385275,0.2757664,95076.0,95075.0,1.9934286]
[1746087385475,0.2757664,95076.0,95075.0,2.7700286]
[1746087386074,0.40558077,95076.0,95075.0,2.7700286]
[1746087387268,0.28358077,95076.0,95075.0,2.7700286]
[1746087388065,0.40558077,95076.0,95075.0,2.7700286]
[1746087390078,0.28358077,95076.0,95075.0,2.7700286]
[1746087390580,0.04295437,95076.0,95075.0,2.7700286]
[1746087390780,0.04295437,95076.0,95075.0,2.8003286]
[1746087391079,0.37528077,95076.0,95075.0,2.8003286]
[1746087391666,0.16495437,95076.0,95075.0,2.8003286]
[1746087392077,0.25328077,95076.0,95075.0,2.8003286]
[1746087393582,0.00013287,95097.0,95075.0,2.94518]
[1746087393783,0.00013287,95097.0,95091.0,0.2102932]
[1746087393982,0.1,95100.0,95094.0,0.0525715]
[1746087394184,0.00157291,95115.0,95105.0,0.2102623]
[1746087394386,0.0015,95115.0,95111.0,0.210249]
[1746087394580,0.0323,95125.0,95118.0,0.0525583]
[1746087394773,0.0323,95125.0,95124.0,0.2102203]
[1746087395080,0.0323,95125.0,95124.0,0.2202203]
[1746087395284,1.31093415,95125.0,95124.0,0.2202203]
[1746087395485,1.31895546,95125.0,95124.0,0.2202203]
[1746087395780,1.31899546,95125.0,95124.0,0.2202203]
[1746087398273,1.31097415,95125.0,95124.0,0.2202203]
[1746087398678,1.34147415,95125.0,95124.0,0.2202203]
[1746087401891,0.0525443,95144.0,95129.0,0.0525521]
[1746087402194,1.15663415,95134.0,95133.0,0.2102004]
[1746087402493,0.0303,95135.0,95134.0,0.2101982]
[1746087402787,0.062,95135.0,95134.0,0.4834982]
[1746087403284,0.18404,95135.0,95134.0,0.4834982]
[1746087404784,0.18404,95135.0,95134.0,0.4844982]
[1746087406085,0.12204,95135.0,95134.0,0.4844982]
[1746087407288,0.15344,95135.0,95134.0,0.4844982]
[1746087408087,0.12204,95135.0,95134.0,0.4844982]
[1746087411776,0.12204,95135.0,95134.0,0.9002982]
[1746087412991,0.332236,95135.0,95134.0,0.9002982]
[1746087413184,0.394436,95135.0,95134.0,0.9002982]
[1746087414796,0.332236,95135.0,95134.0,0.9002982]
[1746087415091,0.362736,95135.0,95134.0,0.9002982]
[1746087419789,0.362736,95135.0,95134.0,2.4002982]
[1746087420584,1.51937015,95135.0,95134.0,2.1901]
[1746087420789,1.51937015,95135.0,95134.0,2.4002982]
[1746087420982,1.51937015,95135.0,95134.0,0.9002982]
[1746087426695,0.15254,95135.0,95134.0,0.9002982]
[1746087426894,0.362736,95135.0,95134.0,0.9002982]
[1746087427292,0.362736,95135.0,95134.0,0.9324982]
[1746087432400,0.362736,95135.0,95134.0,0.9002982]
[1746087433500,1.51937015,95135.0,95134.0,0.6901]
[1746087434588,1.51937015,95135.0,95134.0,0.9002982]
[1746087436599,1.51933015,95135.0,95134.0,0.9002982]
[1746087439793,1.51933015,95135.0,95134.0,0.6901]
[1746087440700,1.51933015,95135.0,95134.0,0.9002982]
[1746087442393,1.51933015,95135.0,95134.0,0.6901]
[1746087443102,1.51933015,95135.0,95134.0,0.9002982]
[1746087444603,1.27863415,95135.0,95134.0,0.9002982]
[1746087444795,0.122,95135.0,95134.0,0.9304982]
[1746087444997,0.12204,95135.0,95134.0,0.9304982]
[1746087446404,1.27867415,95135.0,95134.0,0.9304982]
[1746087446605,1.27867415,95135.0,95134.0,0.9314982]
[1746087446797,1.27867415,95135.0,95134.0,0.9334982]
[1746087447218,0.12204,95135.0,95134.0,0.9334982]
[1746087447507,0.12204,95135.0,95134.0,0.9314982]
[1746087447709,0.12204,95135.0,95134.0,0.9334982]
[1746087450011,0.332236,95135.0,95134.0,0.9334982]
[1746087452507,0.12204,95135.0,95134.0,0.9334982]
[1746087457108,0.00013287,95154.0,95149.0,0.2101651]
[1746087457304,0.0015,95150.0,95149.0,1.2367651]
[1746087457617,0.00154,95150.0,95149.0,1.3014651]
[1746087458003,0.0015,95150.0,95149.0,1.3014651]
[1746087458209,0.00254,95150.0,95149.0,1.3014651]
[1746087459007,0.0025,95150.0,95149.0,1.3014651]
[1746087459211,0.00254,95150.0,95149.0,1.3014651]
[1746087460015,0.00254,95150.0,95149.0,1.3024651]
[1746087460218,0.12454,95150.0,95149.0,1.3024651]
[1746087460403,0.12354,95150.0,95149.0,1.3034651]
[1746087461509,7.291e-05,95164.0,95163.0,0.2101341]
[1746087461714,7.291e-05,95164.0,95163.0,0.8309341]
[1746087461919,0.001,95166.0,95165.0,0.2101297]
[1746087462122,0.001,95166.0,95165.0,0.8009297]
[1746087463209,0.123,95166.0,95165.0,0.8009297]
[1746087463610,0.127,95166.0,95165.0,0.8009297]
[1746087464617,0.127,95166.0,95165.0,1.2167297]
[1746087468819,0.1592,95166.0,95165.0,1.2167297]
[1746087477633,0.1582,95166.0,95165.0,1.2167297]
[1746087478336,0.1572,95166.0,95165.0,1.2167297]
[1746087479827,0.1572,95166.0,95165.0,1.2493297]
[1746087482931,0.1572,95166.0,95165.0,1.2812297]
[1746087486632,0.1572,95166.0,95165.0,1.2493297]